fUSD/lending_fUSD_20240418
["ID","MTS","AMOUNT","RATE_DAILY","PERIOD"]
[322868931,1713438644782,-1533.129658,0.00018231,2]
[322868932,1713438644792,-1127.581725,0.00018231,2]
[322868933,1713438644801,-1533.129658,0.00018231,2]
[322868934,1713438644810,-151.0,0.00018231,2]
[322868935,1713438644819,-441.99690552,0.00018231,2]
[322868936,1713438644828,-441.99690552,0.00018231,2]
[322868937,1713438644838,-441.99690552,0.00018231,2]
[322868938,1713438644848,-441.99690552,0.00018231,2]
[322868939,1713438644857,-441.99690552,0.00018231,2]
[322868940,1713438644866,-441.99690552,0.00018231,2]
[322868941,1713438644875,-441.99690552,0.00018231,2]
[322868942,1713438644884,-377068.4349352,0.00018232,2]
[322868943,1713438644972,-688.56235155,0.00018232,2]
[322868956,1713438647379,-1553.4718648,0.00018023,2]
[322868957,1713438647391,-2491.67498763,0.00018023,2]
[322868958,1713438647404,-1268.27378266,0.00018023,2]
[322868959,1713438647467,-787.30992977,0.00018023,2]
[322868960,1713438647495,-430.363,0.00018023,2]
[322868961,1713438650247,13232.39620375,0.00012,2]
[322868962,1713438666420,41224.08608584,0.00025111,90]
[322868968,1713438812156,532.96,0.00015236,2]
[322868970,1713438966538,9114.2005919,0.00025111,90]
[322868981,1713439310333,150.0,0.00015924,2]
[322868983,1713439344491,150.0,0.00014303,2]
[322868984,1713439344514,204.45,0.00014303,2]
[322868985,1713439344536,150.0,0.00014303,2]
[322868986,1713439344560,27.09,0.00014303,2]
[322868988,1713439452260,191.38339832,0.00015924,2]
[322868991,1713439523226,199.33,0.00015841,2]
[322868993,1713439537725,150.0,0.00015803,2]
[322868995,1713439580318,3078.46,0.00015781,2]
[322868996,1713439593450,-11002.0,0.00025111,90]
[322869009,1713439676401,4091.79,0.00015772,2]
[322869010,1713439676580,4177.04,0.00015772,2]
[322869015,1713439710591,416.0,0.00015736,2]
[322869019,1713439729850,1439.63,0.00015792,2]
[322869028,1713439766699,1000.67,0.0001586,2]
[322869040,1713439812373,500.0,0.00015882,2]
[322869041,1713439821618,287.24,0.0001586,2]
[322869066,1713439831523,-267.27511334,0.0001603,2]
[322869067,1713439831534,-1008.47721158,0.0001603,2]
[322869068,1713439831547,-859.98066416,0.0001603,2]
[322869069,1713439831557,-155.0,0.00016031,2]
[322869070,1713439831566,-155.0,0.00016031,2]
[322869071,1713439831575,-1584.80003227,0.00016031,2]
[322869072,1713439831586,-155.0,0.00016032,2]
[322869073,1713439831596,-155.0,0.00016032,2]
[322869074,1713439831605,-94.97620357,0.00016032,2]
[322869075,1713439831641,-60.02379643,0.00016032,2]
[322869076,1713439831651,-487.02239247,0.00016033,2]
[322869077,1713439831660,-150.0,0.00016033,2]
[322869078,1713439831669,-575.2083041,0.00016034,2]
[322869079,1713439831697,-3744.88010468,0.00016034,2]
[322869080,1713439831706,-250.0,0.0001606,2]
[322869081,1713439831716,-850.65775827,0.0001609,2]
[322869082,1713439831727,-116.76224173,0.0001609,2]
[322869083,1713439831737,-270.39,0.0001612,2]
[322869084,1713439831746,-789.32,0.00016174,2]
[322869085,1713439831755,-272.24,0.00016174,2]
[322869086,1713439831765,-156.17,0.0001618,2]
[322869087,1713439831774,-469.63,0.00016259,2]
[322869088,1713439831784,-162.57962616,0.00016304,2]
[322869089,1713439831793,-156.17,0.00016321,2]
[322869090,1713439831802,-3773.15778804,0.00016405,2]
[322869091,1713439831811,-748.53241802,0.00016406,2]
[322869092,1713439831820,-156.17,0.00016461,2]
[322869093,1713439831830,-499.99,0.00016534,2]
[322869094,1713439831842,-584.0,0.00016578,2]
[322869095,1713439831852,-156.17,0.00016602,2]
[322869096,1713439831862,-317.68,0.00016628,2]
[322869097,1713439831874,-567.81168696,0.00016712,2]
[322869098,1713439831886,-187.62831304,0.00016712,2]
[322869099,1713439831896,-156.17,0.00016742,2]
[322869100,1713439831905,-156.17,0.00016883,2]
[322869102,1713439831914,-1250.0,0.00017,2]
[322869104,1713439831924,-156.17,0.00017023,2]
[322869105,1713439831935,-162.57962615,0.000172,2]
[322869106,1713439831945,-174.0,0.00017636,2]
[322869107,1713439831954,-416.0,0.00017703,2]
[322869108,1713439831964,-167.0,0.00017789,2]
[322869109,1713439831973,-434.4774,0.00017829,2]
[322869110,1713439831984,-3754.14482386,0.00017831,2]
[322869111,1713439831996,-1953.0,0.000179,2]
[322869112,1713439832007,-1569.99143839,0.000179,2]
[322869113,1713439832021,-9334.12417772,0.000179,2]
[322869116,1713439832051,-8172.14674752,0.000179,2]
[322869117,1713439832061,-769.76858376,0.000179,2]
[322869118,1713439832072,-82752.1149,0.00017929,2]
[322869119,1713439832082,-160173.701484,0.00017929,2]
[322869120,1713439832095,-3416.94978896,0.00017929,2]
[322869121,1713439832111,-54251.24152704,0.00017929,2]
[322869122,1713439832120,-1055.0,0.0001796,2]
[322869123,1713439832131,-1006.0,0.00018,2]
[322869124,1713439832141,-1474.16348733,0.00018,2]
[322869125,1713439832151,-1220.75948,0.0001805,2]
[322869126,1713439832162,-222.229689,0.00018082,2]
[322869127,1713439832173,-203.091419,0.00018085,2]
[322869128,1713439832184,-1000.0,0.00018086,2]
[322869129,1713439832196,-162.57962615,0.00018095,2]
[322869130,1713439832207,-1008.2391649,0.00018132,2]
[322869131,1713439832216,-7500.0,0.00018132,2]
[322869132,1713439832225,-5889.0,0.00018195,2]
[322869133,1713439832234,-463.241,0.00018195,2]
[322869134,1713439832243,-37661.0,0.00018195,2]
[322869135,1713439832253,-2703.0,0.00018195,2]
[322869136,1713439832262,-5725.0,0.00018195,2]
[322869137,1713439832273,-19076.26236358,0.00018222,2]
[322869138,1713439832283,-769.76858374,0.00018222,2]
[322869139,1713439832293,-7886.4047431,0.00018229,2]
[322869140,1713439832304,-1393.58447337,0.00018229,2]
[322869141,1713439832314,-846.29486118,0.00018229,2]
[322869142,1713439832324,-524.22435168,0.00018229,2]
[322869143,1713439832334,-155.25281614,0.00018229,2]
[322869144,1713439832344,-690.63457683,0.00018229,2]
[322869145,1713439832353,-1127.03271038,0.00018229,2]
[322869146,1713439832363,-158.8652616,0.0001823,2]
[322869147,1713439832375,-1226.86964354,0.0001823,2]
[322869148,1713439832385,-205.05034079,0.0001823,2]
[322869149,1713439832396,-210.12916138,0.00018231,2]
[322869150,1713439832406,-917.42174054,0.00018231,2]
[322869151,1713439832417,-697.02350388,0.00018231,2]
[322869152,1713439832428,-1338.83150358,0.00018231,5]
[322869153,1713439832439,-41031.08822766,0.00018231,2]
[322869154,1713439832454,-449.45831463,0.00018231,2]
[322869155,1713439832468,-24100.6336432,0.00018231,2]
[322869158,1713439833138,-449.81818948,0.00018231,2]
[322869159,1713439833259,-28793.28185966,0.00018231,2]
[322869160,1713439833271,-2008.025263,0.00018231,2]
[322869161,1713439833283,-761.75219466,0.00018231,2]
[322869162,1713439833294,-3302.59056535,0.00018231,2]
[322869163,1713439836782,552.43,0.00014035,2]
[322869192,1713439837956,-343.12217337,0.00016029,2]
[322869193,1713439837965,-552.43,0.00016298,2]
[322869194,1713439837975,-296.20021661,0.00018131,2]
[322869195,1713439837984,-30414.38320706,0.00018231,2]
[322869196,1713439838130,-1250.8098186,0.00018231,2]
[322869197,1713439838141,-2720.37453303,0.00018231,2]
[322869208,1713439839545,-781.6600001,0.00018231,2]
[322869213,1713439839634,-3067.72319999,0.00018231,2]
[322869214,1713439839646,-5956.35862126,0.00018231,2]
[322869215,1713439840915,-399.14999973,0.00017831,2]
[322869216,1713439840926,-296.20021659,0.00018208,2]
[322869217,1713439840936,-1298.43503542,0.0001823,2]
[322869218,1713439840945,-2880.07302208,0.0001823,2]
[322869220,1713439841030,-876.40812806,0.0001823,2]
[322869221,1713439841040,-5412.79187194,0.00018231,2]
[322869222,1713439841082,-1259.7,0.00018231,2]
[322869271,1713439847319,-881.15560881,0.00018229,2]
[322869273,1713439847361,-593.00787852,0.00018229,2]
[322869274,1713439847371,-202.17437643,0.0001823,2]
[322869275,1713439847382,-155.0,0.0001823,2]
[322869276,1713439847391,-22269.57060193,0.0001823,2]
[322869277,1713439847400,-155.0,0.0001823,2]
[322869278,1713439847409,-264.64529609,0.0001823,2]
[322869279,1713439847418,-155.0,0.0001823,2]
[322869280,1713439847427,-942.00015523,0.0001823,2]
[322869281,1713439847436,-3385.17749074,0.00018231,2]
[322869282,1713439847477,-1039.75136505,0.00018231,2]
[322869283,1713439847488,-1991.69681,0.00018231,2]
[322869284,1713439847514,-18869.54710598,0.00018231,2]
[322869285,1713439847524,-1254.90632,0.00018231,2]
[322869286,1713439847535,-250355.133972,0.00018231,2]
[322869287,1713439847544,-364.64744706,0.00018231,2]
[322869288,1713439847553,-364.64744706,0.00018231,2]
[322869289,1713439847562,-364.64744706,0.00018231,2]
[322869290,1713439847571,-364.64744706,0.00018231,2]
[322869291,1713439847580,-364.64744706,0.00018231,2]
[322869292,1713439847589,-364.64744706,0.00018231,2]
[322869293,1713439847599,-688.06630541,0.00018231,2]
[322869294,1713439847608,-162.05254371,0.00018232,2]
[322869295,1713439847617,-61293.59181517,0.00018232,2]
[322869296,1713439847665,-81866.25663087,0.00018232,2]
[322869297,1713439863222,211.58,0.0001958,15]
[322869298,1713439863505,150.5,0.0001958,15]
[322869299,1713439864359,150.5,0.0001957,15]
[322869300,1713439867572,150.5,0.0001956,15]
[322869301,1713439867991,150.5,0.0002089,15]
[322869302,1713439868442,150.5,0.0002088,15]
[322869303,1713439868782,150.5,0.0002087,15]
[322869304,1713439869253,150.5,0.00020969,15]
[322869305,1713439870070,199.5,0.00020959,15]
[322869306,1713439891952,612.1509,0.00015933,2]
[322869308,1713439928665,1373.64319223,0.00015933,2]
[322869309,1713439936037,15417.39239478,0.00015933,2]
[322869310,1713439936628,952.97709067,0.00015136,2]
[322869311,1713439937335,2539.6742244,0.00012,2]
[322869312,1713439938325,17826.18628787,0.00015933,2]
[322869313,1713439939264,1033.52071841,0.00015933,2]
[322869314,1713439945071,1371.93268005,0.00015933,2]
[322869315,1713439949724,3321.35259921,0.00015933,2]
[322869316,1713439949751,39250.00243409,0.00015933,2]
[322869317,1713439957764,2539.6742244,0.00012,2]
[322869318,1713439966404,5591.44980867,0.00015933,2]
[322869319,1713439977825,150.0,0.00012,2]
[322869320,1713439977846,150.0,0.00012,2]
[322869321,1713439977867,150.0,0.00012,2]
[322869322,1713439977893,2086.76257709,0.00012,2]
[322869323,1713439989391,150.5,0.0001959,15]
[322869324,1713439989569,150.5,0.0001958,15]
[322869325,1713439989881,150.5,0.0001957,15]
[322869326,1713439991518,150.5,0.0002089,15]
[322869327,1713439992379,150.5,0.0002088,15]
[322869328,1713439992767,150.5,0.0002087,15]
[322869329,1713439993265,150.5,0.00020969,15]
[322869330,1713439993769,272.5,0.00020959,15]
[322869334,1713440113190,-155.0,0.00016991,2]
[322869335,1713440113213,-5542.89093417,0.00016991,2]
[322869336,1713440113240,-155.0,0.00016992,2]
[322869337,1713440113264,-1584.80003227,0.00016992,2]
[322869338,1713440113289,-1293.26801217,0.00016992,2]
[322869339,1713440113317,-150.0,0.00016997,2]
[322869340,1713440113340,-50000.0,0.00017,2]
[322869341,1713440113369,-1250.0,0.00017,2]
[322869342,1713440113391,-8414.21,0.00017095,2]
[322869343,1713440113415,-1226.18058467,0.00017219,2]
[322869344,1713440113438,-250.0,0.0001749,2]
[322869345,1713440113461,-151.31,0.00017648,2]
[322869346,1713440113485,-151.31,0.00017763,2]
[322869347,1713440113507,-1911.72,0.00017771,2]
[322869348,1713440113530,-4942.1335,0.00017829,2]
[322869349,1713440113552,-352.2521,0.00017829,2]
[322869350,1713440113575,-94941.92483672,0.00017829,2]
[322869351,1713440321380,543.65,0.00015052,2]
[322869354,1713440564026,33339.32713086,0.00021,10]
[322869355,1713440580632,75000.0,0.0002,10]
[322869356,1713440594425,81644.86608634,0.00021,18]
[322869357,1713440641920,150.0,0.00016001,2]
[322869358,1713440648394,155.0,0.00016,2]
[322869359,1713440652765,1584.80003227,0.00016,2]
[322869360,1713440655690,2291.0,0.00016,2]
[322869361,1713440680885,1567.69272448,0.00016,2]
[322869362,1713440691575,310.11177363,0.00015901,2]
[322869363,1713440700633,2000.0,0.00016,2]
[322869364,1713440730695,2300.0,0.00016,2]
[322869365,1713440772123,2000.0,0.00016,2]
[322869366,1713440776866,545.48295772,0.000128,2]
[322869367,1713440798750,309.34092266,0.000128,2]
[322869369,1713440811133,1000.0,0.00016,2]
[322869370,1713440812684,560.35,0.00014845,2]
[322869371,1713440841626,432.34283195,0.000128,2]
[322869372,1713440845935,179.38367057,0.000128,2]
[322869373,1713440940874,873.19403491,0.000128,2]
[322869374,1713440942763,545.01338785,0.0001024,2]
[322869375,1713440946890,443.0725772,0.0001216,2]
[322869376,1713440950135,415.36661426,0.000128,2]
[322869414,1713441031942,-3019.0781,0.00016545,2]
[322869415,1713441031952,-38.6219,0.00016581,2]
[322869416,1713441032031,-264.14055063,0.00016581,2]
[322869417,1713441032043,-2926.07551675,0.00016581,2]
[322869418,1713441032052,-1231.6318,0.00016645,2]
[322869419,1713441032063,-250.0,0.00016652,2]
[322869420,1713441032073,-740.0,0.00016681,2]
[322869421,1713441032083,-199.25,0.00016682,2]
[322869422,1713441032093,-894.36287781,0.00016683,2]
[322869423,1713441032322,-476.33857957,0.00016683,2]
[322869424,1713441032333,-39.16854262,0.00016683,2]
[322869425,1713441032343,-500.0,0.00016745,2]
[322869426,1713441032353,-249.71439983,0.00016749,2]
[322869427,1713441032368,-91.96560017,0.00016749,2]
[322869428,1713441032377,-556.02,0.00016782,2]
[322869429,1713441032392,-249.6,0.00016816,2]
[322869430,1713441032402,-150.99,0.00016823,2]
[322869431,1713441032411,-150.0,0.00016849,2]
[322869432,1713441032421,-3102.12,0.0001685,2]
[322869433,1713441032430,-774.15,0.00016883,2]
[322869434,1713441032440,-216.52,0.00016883,2]
[322869435,1713441032450,-150.99,0.00016883,2]
[322869436,1713441032460,-282.12,0.00016883,2]
[322869437,1713441032470,-2526.12,0.00016883,2]
[322869438,1713441032479,-155.35,0.00016892,2]
[322869439,1713441032489,-155.35,0.00016972,2]
[322869440,1713441032498,-1047.9,0.00016973,2]
[322869441,1713441032507,-4580.03059651,0.00016973,2]
[322869444,1713441037410,1747.00099632,0.00013671,2]
[322869480,1713441038380,-719.0,0.00016544,2]
[322869481,1713441038394,-403.94407473,0.00016973,2]
[322869482,1713441038483,-4260.34955178,0.00016973,2]
[322869483,1713441038541,-631.05577698,0.00016973,2]
[322869484,1713441038550,-61.45422302,0.00016973,2]
[322869486,1713441039953,-438.53577698,0.00016973,2]
[322869487,1713441039963,-378.89059169,0.00016984,2]
[322869488,1713441040288,-481.50940831,0.00016984,2]
[322869489,1713441040298,-150.0,0.00016986,2]
[322869490,1713441040307,-2496.68,0.00016986,2]
[322869491,1713441040318,-219.26,0.00017007,2]
[322869492,1713441040328,-155.35,0.00017052,2]
[322869493,1713441040339,-750.4,0.00017058,2]
[322869494,1713441040348,-560.35,0.00017108,2]
[322869495,1713441040357,-155.35,0.00017132,2]
[322869496,1713441040367,-155.35,0.00017212,2]
[322869497,1713441040376,-286.219765,0.0001726,2]
[322869498,1713441040388,-155.35,0.00017292,2]
[322869499,1713441040398,-407.77447819,0.00017319,2]
[322869500,1713441040407,-155.35,0.00017372,2]
[322869501,1713441040416,-155.35,0.00017452,2]
[322869502,1713441040426,-167.62,0.00017486,2]
[322869503,1713441040435,-155.35,0.00017532,2]
[322869504,1713441040444,-155.35,0.00017612,2]
[322869505,1713441040454,-155.35,0.00017693,2]
[322869506,1713441040463,-28651.04,0.00017728,2]
[322869507,1713441040472,-15703.883,0.00017729,2]
[322869508,1713441040482,-155.35,0.00017773,2]
[322869509,1713441040491,-42.80918765,0.000178,2]
[322869510,1713441040505,-474.19081235,0.000178,2]
[322869511,1713441040515,-586.20896188,0.000178,2]
[322869512,1713441040525,-4135.60022577,0.00017829,2]
[322869513,1713441040539,-6419.81432832,0.00017829,2]
[322869514,1713441040550,-14477.06260919,0.00017829,2]
[322869515,1713441040559,-1474.16348733,0.00018006,2]
[322869516,1713441040569,-856.94486902,0.00018007,2]
[322869517,1713441040578,-1017.29956,0.0001805,2]
[322869518,1713441040588,-286.219765,0.00018082,2]
[322869519,1713441040598,-500.0,0.00018086,2]
[322869520,1713441040607,-990.0411,0.00018095,2]
[322869521,1713441040617,-4672.2306516,0.000181,2]
[322869522,1713441040682,-409.45999997,0.000181,2]
[322869523,1713441040694,-340.47,0.000181,2]
[322869524,1713441040739,-849.99222008,0.000181,2]
[322869525,1713441041506,-6298.39677135,0.000181,2]
[322869526,1713441041516,-3808.0366,0.00018112,2]
[322869527,1713441041526,-624.4967,0.00018112,2]
[322869528,1713441041535,-696.89162542,0.00018112,2]
[322869529,1713441041544,-189.08805369,0.0001813,2]
[322869530,1713441041553,-189.08805364,0.00018131,2]
[322869531,1713441041563,-3469.0221,0.00018132,2]
[322869532,1713441041572,-7500.0,0.00018132,2]
[322869533,1713441041581,-189.08805364,0.00018132,2]
[322869534,1713441041590,-189.08805364,0.00018133,2]
[322869535,1713441041601,-189.08805364,0.00018135,2]
[322869536,1713441041611,-189.08805364,0.00018136,2]
[322869537,1713441041621,-189.08805364,0.00018137,2]
[322869538,1713441041631,-174.24710374,0.00018138,2]
[322869539,1713441041641,-1774.78299266,0.00018138,2]
[322869540,1713441041650,-189.08805364,0.00018138,2]
[322869541,1713441041660,-296.20021659,0.00018138,2]
[322869542,1713441041669,-35828.691,0.00018195,2]
[322869543,1713441041679,-33717.73298054,0.00018212,4]
[322869544,1713441041688,-908.76,0.00018219,2]
[322869545,1713441041698,-521.47,0.00018219,2]
[322869546,1713441041707,-300.0,0.00018219,2]
[322869547,1713441041717,-747.38,0.00018219,2]
[322869548,1713441041727,-154.38,0.00018219,2]
[322869549,1713441041736,-150.14,0.00018222,2]
[322869550,1713441041746,-150.14,0.00018222,2]
[322869551,1713441041755,-150.14,0.00018222,2]
[322869552,1713441041765,-150.14,0.00018222,2]
[322869553,1713441041775,-1508.45280639,0.00018228,2]
[322869554,1713441041785,-155.0,0.00018228,2]
[322869555,1713441041795,-190.25031446,0.00018229,2]
[322869556,1713441041805,-258.57500002,0.00018229,2]
[322869557,1713441041815,-155.57227793,0.0001823,2]
[322869558,1713441041825,-2353.62009514,0.0001823,2]
[322869559,1713441041835,-486.23899963,0.0001823,2]
[322869560,1713441041845,-266.45241453,0.0001823,2]
[322869561,1713441041854,-203.79893697,0.0001823,2]
[322869562,1713441041864,-2163.22909974,0.0001823,2]
[322869563,1713441041874,-207.65451655,0.0001823,2]
[322869564,1713441041884,-32147.00936803,0.0001823,2]
[322869565,1713441041897,-262.41181597,0.0001823,2]
[322869566,1713441041906,-45849.49258032,0.0001823,2]
[322869567,1713441041935,-6522.67399554,0.0001823,2]
[322869572,1713441043004,-500.0,0.00016543,2]
[322869573,1713441043016,-38.93739047,0.00016543,2]
[322869574,1713441043025,-1512.34219659,0.0001823,2]
[322869575,1713441043037,-594.18952226,0.0001823,2]
[322869576,1713441043063,-1041.4084361,0.0001823,2]
[322869577,1713441043080,-966.37291859,0.0001823,2]
[322869578,1713441043199,-2763.67063212,0.0001823,2]
[322869579,1713441043331,-1530.61519484,0.0001823,2]
[322869580,1713441043343,-335.58292059,0.0001823,2]
[322869581,1713441043353,-541.38779274,0.0001823,2]
[322869582,1713441043364,-428.03097649,0.0001823,2]
[322869583,1713441043402,-840.64392545,0.0001823,2]
[322869584,1713441043414,-867.1423354,0.0001823,2]
[322869587,1713441045998,-665.43394872,0.0001823,2]
[322869588,1713441046011,-467.14355168,0.0001823,2]
[322869597,1713441046421,-9954.63501739,0.0001823,2]
[322869598,1713441046449,-1790.17252902,0.0001823,2]
[322869599,1713441046460,-107.38576978,0.0001823,2]
[322869600,1713441046470,-1992.96083559,0.0001823,2]
[322869601,1713441046480,-5770.62581747,0.0001823,2]
[322869602,1713441046492,-2368.38072603,0.0001823,2]
[322869603,1713441046501,-913.87158009,0.0001823,2]
[322869604,1713441046512,-313.58324232,0.0001823,2]
[322869605,1713441046521,-672.47872495,0.0001823,2]
[322869606,1713441046530,-263.53476276,0.0001823,2]
[322869607,1713441046539,-155.14271878,0.00018231,2]
[322869608,1713441046549,-340.76311324,0.00018231,2]
[322869609,1713441046558,-793.53559389,0.00018231,2]
[322869610,1713441046568,-12032.43470322,0.00018231,2]
[322869611,1713441046578,-15025.95074372,0.00018231,2]
[322869612,1713441046616,16688.41357389,0.000128,2]
[322869613,1713441046630,-1760.73554116,0.00018231,2]
[322869614,1713441046643,-32367.83447591,0.00018231,2]
[322869615,1713441046787,-255.41169921,0.00018231,2]
[322869616,1713441046799,-11270.93759716,0.00018231,2]
[322869617,1713441046887,-36266.86390263,0.00018231,2]
[322869618,1713441046899,-309.95033,0.00018231,2]
[322869619,1713441046908,-309.95033,0.00018231,2]
[322869620,1713441046918,-309.95033,0.00018231,2]
[322869621,1713441046927,-309.95033,0.00018231,2]
[322869622,1713441046937,-309.95033,0.00018231,2]
[322869623,1713441046946,-1058.04745852,0.00018231,2]
[322869624,1713441046955,-86605.3369888,0.00018232,2]
[322869625,1713441058953,1745.37410996,0.00013673,2]
[322869626,1713441059018,1373.64319223,0.000128,2]
[322869627,1713441060557,1470.85904345,0.000128,2]
[322869628,1713441068771,2287.6629019,0.000128,2]
[322869629,1713441071037,3592.40735373,0.000128,2]
[322869630,1713441080938,956.00177607,0.000128,2]
[322869631,1713441085889,179.44574028,0.000128,2]
[322869632,1713441093093,339.107512,0.00015,2]
[322869633,1713441099930,513.4437373,0.000128,2]
[322869634,1713441105562,509.96685798,0.000128,2]
[322869635,1713441115072,10257.19982899,0.0001539,2]
[322869645,1713441274564,63917.88797172,0.00015,2]
[322869818,1713441531397,150.0,0.00015023,2]
[322869819,1713441531418,150.0,0.00015023,2]
[322869820,1713441531439,165.95,0.00015023,2]
[322869821,1713441531461,150.0,0.00015023,2]
[322869822,1713441531484,186.5,0.00015023,2]
[322869850,1713441921679,111.01,0.00015955,2]
[322869851,1713441921701,284.6417706,0.00015955,2]
[322869852,1713441921727,7739.5097194,0.00015955,2]
[322869853,1713442061558,500.0,0.00015995,2]
[322869854,1713442093732,4617.49025499,0.00015935,2]
[322869855,1713442125827,150.0,0.00014181,2]
[322869856,1713442125848,150.0,0.00014181,2]
[322869857,1713442125869,150.0,0.00014181,2]
[322869858,1713442125890,150.0,0.00014181,2]
[322869859,1713442125910,150.0,0.00014181,2]
[322869860,1713442125937,70.98,0.00014181,2]
[322869861,1713442142664,284.61241272,0.00021321,18]
[322869862,1713442181769,150.0,0.00015469,2]
[322869875,1713442232841,-150.0,0.0001573,2]
[322869876,1713442232850,-8253.47889783,0.00015834,2]
[322869913,1713442238191,-500.0,0.00015834,2]
[322869914,1713442238202,-847.88538066,0.00015834,2]
[322869915,1713442238211,-1982.16088613,0.00015934,2]
[322869916,1713442238221,-150.0,0.00015934,2]
[322869917,1713442238230,-266.37,0.00015935,2]
[322869918,1713442238240,-1149.31733621,0.00016034,2]
[322869919,1713442238251,-10053.16865314,0.00016034,2]
[322869934,1713442238867,-492.130993,0.00016034,2]
[322869935,1713442238879,-6477.81365,0.00016034,2]
[322870009,1713442240337,-2015.44520149,0.00016034,2]
[322870011,1713442240349,-242.6802443,0.00016035,2]
[322870022,1713442240449,-428.07289669,0.00016035,2]
[322870024,1713442240515,-785.98497078,0.00016035,2]
[322870027,1713442240527,-457.825,0.00016035,2]
[322870029,1713442240538,-1000.0,0.00016035,2]
[322870034,1713442240583,-775.77409809,0.00016035,2]
[322870047,1713442240708,-1120.32376913,0.00016035,2]
[322870049,1713442240719,-4544.21741869,0.00016035,2]
[322870052,1713442240731,-1000.07439358,0.00016035,2]
[322870054,1713442240742,-495.56476405,0.00016035,2]
[322870056,1713442240754,-1561.48976534,0.00016035,2]
[322870068,1713442240858,-0.19984247,0.00016035,2]
[322870193,1713442242563,150.0,0.00015469,2]
[322870194,1713442242584,22.96455134,0.00015469,2]
[322870208,1713442242856,127.03544866,0.00015469,2]
[322870210,1713442242875,150.0,0.00015469,2]
[322870213,1713442242901,88.8831798,0.00015469,2]
[322870214,1713442244054,61.1168202,0.00012375,2]
[322870215,1713442244075,150.0,0.00012375,2]
[322870216,1713442244097,150.0,0.00012375,2]
[322870217,1713442244116,150.0,0.00012375,2]
[322870218,1713442244136,34.36613752,0.00012375,2]
[322870219,1713442244244,-1006.0771304,0.00016035,2]
[322870220,1713442244255,-525.31687886,0.00016035,2]
[322870221,1713442244267,-738.78598,0.00016035,2]
[322870222,1713442244314,-554.17964484,0.00016035,2]
[322870223,1713442245435,116.14629791,0.00015469,2]
[322870224,1713442245455,150.0,0.00015469,2]
[322870225,1713442245476,77.94408779,0.00015469,2]
[322870229,1713442246123,150.0,0.00015469,2]
[322870230,1713442246143,150.0,0.00015469,2]
[322870231,1713442246163,19.70080444,0.00015469,2]
[322870248,1713442247272,130.29919556,0.00015469,2]
[322870249,1713442247297,24.70080444,0.00015469,2]
[322870250,1713442247536,288.29006893,0.00015469,2]
[322870251,1713442248005,408.28828866,0.00015469,2]
[322870252,1713442248190,179.55725159,0.00015469,2]
[322870253,1713442248927,323.54771972,0.00015469,2]
[322870254,1713442252133,150.0,0.00015469,2]
[322870255,1713442252153,123.97479475,0.00015469,2]
[322870256,1713442253788,26.02520525,0.00014696,2]
[322870257,1713442253826,150.0,0.00014696,2]
[322870258,1713442253848,150.0,0.00014696,2]
[322870259,1713442253869,150.0,0.00014696,2]
[322870260,1713442253891,150.0,0.00014696,2]
[322870261,1713442253911,100.29696314,0.00014696,2]
[322870262,1713442254967,150.0,0.00015469,2]
[322870263,1713442254987,23.65817163,0.00015469,2]
[322870264,1713442260141,150.0,0.00015469,2]
[322870265,1713442260163,5.0,0.00015469,2]
[322870266,1713442261370,150.0,0.00015469,2]
[322870267,1713442261740,9.0211518,0.00015469,2]
[322870268,1713442261954,140.9788482,0.00015469,2]
[322870269,1713442261975,150.0,0.00015469,2]